[Event "5th Baskent University Open 2022"]
[Site "Ankara"]
[Date "2022.07.07"]
[Round "9.22"]
[White "Kavri, Yusuf Eren"]
[Black "Turkmen, Ataberk"]
[Result "1-0"]
[ECO "A43"]
[WhiteElo "1983"]
[BlackElo "1935"]
[Annotator "RC"]
[PlyCount "145"]
[EventDate "2022.07.02"]
[EventType "swiss"]
[EventCountry "TUR"]
[SourceTitle "playchess.com"]
[Source "ChessBase"]
[SourceQuality "1"]
[TimeControl "5400+30"]

1. c4 {[%emt 0:01:00]} g6 {[%emt 0:02:00]} 2. d4 {[%emt 0:00:30]} Bg7 {[%emt 0:00:30]} 3. Nc3 {[%emt 0:00:30]} d6 {[%emt 0:00:30]} 4. e4 {[%emt 0:00:30]} c5 {[%emt 0:02:30]} 5. d5 {[%emt 0:00:30]} Na6 {[%emt 0:05:30]} 6. h3 {[%emt 0:04:30]} Nc7 {[%emt 0:00:30]} 7. Nf3 {[%emt 0:00:30]} e5 {[%emt 0:05:30]} 8. dxe6 {[%emt 0:10:30]} fxe6 {[%emt 0:04:30]} 9. Bg5 {[%emt 0:00:30]} Bf6 {[%emt 0:11:30]} 10. Qd2 {[%emt 0:21:30]} Bxg5 {[%emt 0:10:30]} 11. Nxg5 {[%emt 0:00:30]} Ne7 {[%emt 0:00:30]} 12. Rd1 {[%emt 0:03:30]} Nc6 {[%emt 0:01:30]} 13. Nf3 {[%emt 0:03:30]} Rf8 {[%emt 0:16:30]} 14. Qxd6 {[%emt 0:11:30]} Qxd6 {[%emt 0:00:30]} 15. Rxd6 {[%emt 0:00:00]} Ke7 {[%emt 0:00:30]} 16. Rd2 {[%emt 0:02:00]} b6 {[%emt 0:02:30]} 17. Be2 {[%emt 0:00:30]} Bb7 {[%emt 0:03:30]} 18. O-O {[%emt 0:01:30]} Rad8 {[%emt 0:00:30]} 19. Rfd1 {[%emt 0:02:30]} Rxd2 {[%emt 0:00:30]} 20. Rxd2 {[%emt 0:00:00]} Ne8 {[%emt 0:00:30]} 21. Bd1 {[%emt 0:02:00]} Nd6 {[%emt 0:00:30]} 22. b3 {[%emt 0:02:30]} Rf4 {[%emt 0:02:30]} 23. g3 {[%emt 0:05:30]} Rf8 {[%emt 0:02:30]} 24. Kg2 {[%emt 0:01:30]} a6 {[%emt 0:01:30]} 25. Ne1 {[%emt 0:05:35]} Ne5 {[%emt 0:04:30]} 26. f3 {[%emt 0:04:13]} b5 {[%emt 0:00:00]} 27. cxb5 {[%emt 0:00:59]} axb5 {[%emt 0:00:00]} 28. Nc2 {[%emt 0:03:07]} Bc6 {[%emt 0:02:30]} 29. a3 {[%emt 0:01:32]} Ra8 {[%emt 0:00:32]} 30. Be2 {[%emt 0:00:44]} g5 {[%emt 0:00:28]} 31. Kf2 {[%emt 0:00:52]} Rf8 {[%emt 0:02:04]} 32. Ke3 {[%emt 0:00:36]} h5 {[%emt 0:01:02]} 33. Rd1 {[%emt 0:00:01]} Rg8 {[%emt 0:01:31]} 34. Rg1 {[%emt 0:00:52]} Nd7 {[%emt 0:04:13]} 35. b4 {[%emt 0:02:36]} Ra8 {[%emt 0:05:20]} 36. bxc5 {[%emt 0:01:18]} Nxc5 {[%emt 0:00:01]} 37. Rb1 {[%emt 0:00:20]} Na4 {[%emt 0:01:13]} 38. Nxa4 {[%emt 0:01:17]} Rxa4 {[%emt 0:00:30]} 39. Rb4 {[%emt 0:00:30]} Ra8 {[%emt 0:00:30]} 40. Rb3 {[%emt 0:00:30]} Bd7 {[%emt 0:00:30]} 41. Rc3 {[%emt 0:00:30]} h4 {[%emt 0:00:30]} 42. gxh4 {[%emt 0:00:30]} gxh4 {[%emt 0:00:30]} 43. Rc5 {[%emt 0:00:30]} Rh8 {[%emt 0:00:30]} 44. Bd3 {[%emt 0:00:30]} Nb7 {[%emt 0:00:30]} 45. Rc7 {[%emt 0:00:30]} Nd6 {[%emt 0:00:30]} 46. e5 {[%emt 0:00:30]} Nf7 {[%emt 0:00:30]} 47. f4 {[%emt 0:00:30]} Kd8 {[%emt 0:00:30]} 48. Ra7 {[%emt 0:00:30]} Rg8 {[%emt 0:00:30]} 49. Ra8+ {[%emt 0:00:30]} Bc8 {[%emt 0:00:30]} 50. Bxb5 {[%emt 0:00:30]} Rg3+ {[%emt 0:00:30]} 51. Kd4 {[%emt 0:00:30]} Kc7 {[%emt 0:00:30]} 52. Ra7+ {[%emt 0:00:30]} Kb6 {[%emt 0:00:30]} 53. Rxf7 {[%emt 0:00:30]} Kxb5 {[%emt 0:04:43]} 54. Rc7 {[%emt 0:05:57]} Ba6 {[%emt 0:00:47]} 55. Nb4 {[%emt 0:01:18]} Rxa3 {[%emt 0:00:49]} 56. Nxa6 {[%emt 0:00:07]} Rxa6 {[%emt 0:00:41]} 57. Ke4 {[%emt 0:01:15]} Ra3 {[%emt 0:00:50]} 58. Re7 {[%emt 0:00:06]} Rxh3 {[%emt 0:01:14]} 59. Rxe6 {[%emt 0:00:01]} Rh1 {[%emt 0:00:22]} 60. Kf5 {[%emt 0:00:37]} h3 {[%emt 0:00:07]} 61. Rh6 {[%emt 0:00:06]} h2 {[%emt 0:00:46]} 62. Ke6 {[%emt 0:00:13]} Rf1 {[%emt 0:00:44]} 63. Rxh2 {[%emt 0:00:30]} Rxf4 {[%emt 0:00:00]} 64. Rc2 {[%emt 0:00:13]} Kb6 {[%emt 0:00:00]} 65. Ke7 {[%emt 0:00:16]} Rf3 {[%emt 0:00:25]} 66. e6 {[%emt 0:00:00]} Kb7 {[%emt 0:00:27]} 67. Ke8 {[%emt 0:00:00]} Rf1 {[%emt 0:00:40]} 68. e7 {[%emt 0:01:12]} Rf3 {[%emt 0:00:03]} 69. Rc4 {[%emt 0:00:27]} Rf1 {[%emt 0:01:39]} 70. Kd7 {[%emt 0:00:12]} Rd1+ {[%emt 0:00:00]} 71. Ke6 {[%emt 0:00:47]} Re1+ {[%emt 0:00:09]} 72. Kd6 {[%emt 0:00:00]} Re2 {[%emt 0:00:00]} 73. Rc5 {[%emt 0:00:00]} 1-0

[Event "5th Baskent University Open 2022"]
[Site "Ankara"]
[Date "2022.07.07"]
[Round "9.23"]
[White "Buke, Furkan"]
[Black "Turgut, Hakan"]
[Result "1-0"]
[ECO "B12"]
[WhiteElo "1979"]
[BlackElo "1794"]
[Annotator "RC"]
[PlyCount "101"]
[EventDate "2022.07.02"]
[EventType "swiss"]
[EventCountry "TUR"]
[SourceTitle "playchess.com"]
[Source "ChessBase"]
[SourceQuality "1"]
[TimeControl "5400+30"]

1. e4 {[%emt 0:01:00]} c6 {[%emt 0:01:00]} 2. d4 {[%emt 0:00:00]} d5 {[%emt 0:00:30]} 3. e5 {[%emt 0:00:00]} Bf5 {[%emt 0:00:00]} 4. Nf3 {[%emt 0:00:30]} h6 {[%emt 0:01:00]} 5. Be2 {[%emt 0:00:30]} e6 {[%emt 0:00:30]} 6. O-O {[%emt 0:00:30]} Nd7 {[%emt 0:00:30]} 7. Nbd2 {[%emt 0:00:30]} g5 {[%emt 0:00:00]} 8. Ne1 {[%emt 0:00:30]} Ne7 {[%emt 0:00:00]} 9. Nb3 {[%emt 0:01:30]} Qc7 {[%emt 0:00:30]} 10. a4 {[%emt 0:09:30]} O-O-O {[%emt 0:01:30]} 11. a5 {[%emt 0:00:30]} a6 {[%emt 0:00:30]} 12. Bd2 {[%emt 0:01:30]} f6 {[%emt 0:02:30]} 13. exf6 {[%emt 0:01:30]} Nxf6 {[%emt 0:00:30]} 14. Bb4 {[%emt 0:07:30]} Ng6 {[%emt 0:10:30]} 15. Bxf8 {[%emt 0:02:30]} Nxf8 {[%emt 0:01:30]} 16. Nd3 {[%emt 0:01:30]} Ng6 {[%emt 0:02:30]} 17. Nbc5 {[%emt 0:02:30]} h5 {[%emt 0:08:30]} 18. f3 {[%emt 0:15:30]} g4 {[%emt 0:08:30]} 19. f4 {[%emt 0:01:30]} Ne4 {[%emt 0:07:30]} 20. Ra3 {[%emt 0:06:30]} Rh7 {[%emt 0:03:30]} 21. Nb3 {[%emt 0:15:30]} Qe7 {[%emt 0:09:30]} 22. Qe1 {[%emt 0:01:30]} Rg8 {[%emt 0:06:30]} 23. Nbc5 {[%emt 0:03:30]} g3 {[%emt 0:05:30]} 24. hxg3 {[%emt 0:01:30]} h4 {[%emt 0:00:30]} 25. g4 {[%emt 0:02:30]} h3 {[%emt 0:00:30]} 26. g3 {[%emt 0:00:30]} Nh4 {[%emt 0:09:30]} 27. Ne5 {[%emt 0:05:35]} Ng2 {[%emt 0:02:39]} 28. Qb4 {[%emt 0:02:09]} Nxc5 {[%emt 0:04:32]} 29. Qxc5 {[%emt 0:00:16]} Qxc5 {[%emt 0:02:37]} 30. dxc5 {[%emt 0:00:03]} Bxc2 {[%emt 0:00:24]} 31. g5 {[%emt 0:01:27]} d4 {[%emt 0:00:50]} 32. Bg4 {[%emt 0:00:48]} Re8 {[%emt 0:02:57]} 33. Nc4 {[%emt 0:00:17]} Kc7 {[%emt 0:03:00]} 34. Kh2 {[%emt 0:02:17]} d3 {[%emt 0:02:33]} 35. Bd1 {[%emt 0:01:33]} Rd8 {[%emt 0:02:04]} 36. Bxc2 {[%emt 0:01:29]} dxc2 {[%emt 0:00:01]} 37. Nd6 {[%emt 0:00:00]} e5 {[%emt 0:00:52]} 38. f5 {[%emt 0:01:16]} e4 {[%emt 0:00:25]} 39. Rb3 {[%emt 0:00:40]} Kb8 {[%emt 0:00:51]} 40. g6 {[%emt 0:01:01]} Rh6 {[%emt 0:00:52]} 41. Rc1 {[%emt 0:00:27]} e3 {[%emt 0:00:21]} 42. Rxc2 {[%emt 0:01:42]} Ne1 {[%emt 0:01:09]} 43. Re2 {[%emt 0:00:28]} Nf3+ {[%emt 0:00:30]} 44. Kh1 {[%emt 0:00:30]} Nd4 {[%emt 0:00:00]} 45. Rxb7+ {[%emt 0:00:15]} Ka8 {[%emt 0:00:15]} 46. Rxe3 {[%emt 0:00:00]} h2 {[%emt 0:00:49]} 47. Ree7 {[%emt 0:01:36]} Rxd6 {[%emt 0:00:30]} 48. cxd6 {[%emt 0:00:30]} Nxf5 {[%emt 0:00:00]} 49. Ra7+ {[%emt 0:00:00]} Kb8 {[%emt 0:00:11]} 50. Reb7+ {[%emt 0:00:18]} Kc8 {[%emt 0:00:30]} 51. d7+ {[%emt 0:00:00]} 1-0

[Event "5th Baskent University Open 2022"]
[Site "Ankara"]
[Date "2022.07.07"]
[Round "9.24"]
[White "Ozgun, Yigit Deniz"]
[Black "Yurtoglu, Osman Talha"]
[Result "0-1"]
[ECO "B81"]
[WhiteElo "1567"]
[BlackElo "1923"]
[Annotator "TA"]
[PlyCount "69"]
[EventDate "2022.07.02"]
[EventType "swiss"]
[EventCountry "TUR"]
[SourceTitle "playchess.com"]
[Source "ChessBase"]
[SourceQuality "1"]
[TimeControl "5400+30"]

{[%evp 17,69,0,18,6,24,20,25,13,13,13,25,0,23,-11,0,0,0,0,0,0,0,0,63,-143,-142,-202,-208,-209,-202,-200,-194,-333,-260,-374,-342,-364,-273,-293,-292,-433,-306,-281,-285,-365,-298,-1349,-1352,-1458,-1412,-1332,-773,-29985,-29986,-29987]} 1. e4 {[%emt 0:01:00]} c5 {[%emt 0:01:00]} 2. Nf3 {[%emt 0:00:30]} d6 {[%emt 0:00:30]} 3. d4 {[%emt 0:00:30]} cxd4 {[%emt 0:00:30]} 4. Nxd4 {[%emt 0:00:30]} Nf6 {[%emt 0:00:30]} 5. Nc3 {[%emt 0:00:30]} a6 {[%emt 0:00:30]} 6. h3 {[%emt 0:00:30]} b5 {[%emt 0:00:30]} 7. g4 {[%emt 0:00:30]} Bb7 {[%emt 0:00:30]} 8. Bg2 {[%emt 0:00:30]} e6 {[%emt 0:00:30] 8...Nc6 gains popularity.} 9. g5 {[%emt 0:00:30]} Nfd7 {[%emt 0:00:30]} 10. Be3 {[%emt 0:00:30] B81: Sicilian Scheveningen: Keres Attack.} Qc7 {[%emt 0:00:00]} 11. Qd2 {[%emt 0:00:00]} Nc6 {[%emt 0:00:00][%cal Bb8c6,Bc6e7,Be7g6,Bg6e5][%mdl 32]} 12. f4 {[%emt 0:00:00] [#] Prevents Nde5. White has an edge.} Nb6 $146 {[%emt 0:00:30]} ({Predecessor:} 12... Na5 13. Qe2 Nc4 14. Bc1 Be7 15. b3 Na3 16. Bb2 Qc5 17. Rd1 Rc8 18. Rd2 O-O {1-0 (57) Grove,M (2064)-Kotyk,V (1848) Pardubice 2014}) 13. b3 {[%emt 0:04:30] Against Nc4} Rc8 {[%emt 0:05:30]} 14. Nce2 {[%emt 0:07:30]} Ne7 {[%emt 0:11:30]} 15. O-O {[%emt 0:09:30]} d5 {[%emt 0:18:30]} 16. f5 {[%emt 0:10:30]} e5 {[%emt 0:03:30]} 17. f6 {[%emt 0:00:30]} gxf6 {[%emt 0:10:30]} 18. gxf6 {[%emt 0:00:30]} Ng6 {[%emt 0:00:30]} 19. Nf5 {[%emt 0:00:30][%cal Re4d5]} d4 {[%emt 0:00:30]} (19... Rg8 $11) 20. Nexd4 $2 {[%emt 0:00:30]} exd4 $17 {[%emt 0:00:30] Black keeps a firm grip on the game.} 21. Qxd4 {[%emt 0:00:00] [#]} (21. Ng7+ $17 Bxg7 22. fxg7 dxe3 23. gxh8=Q+ Nxh8 24. Qxe3) 21... Nd7 $1 $19 {[%emt 0:07:30]} ({But not} 21... Bc5 22. Qxc5 Qxc5 23. Bxc5 Rxc5 24. Nd6+ Kd7 25. Nxb7 $16) 22. Rad1 {[%emt 0:02:00]} Nge5 {[%emt 0:05:30]} (22... Bc5 23. Qd2 (23. Ng7+ Kd8 $17) 23... Nge5 24. Rf2 $15) 23. Kh1 {[%emt 0:09:30]} Rg8 {[%emt 0:01:30][%cal Bh8g8,Bg8g6,Bg6f6][%mdl 32]} (23... Qxc2 $2 24. Nd6+ Kd8 25. Nxf7+ Kc7 26. Nxe5 $18) ({And not} 23... Nxf6 24. Bh6 Rg8 25. Bxf8 Kxf8 26. Nd6 $17) 24. Rf2 {[%emt 0:02:30]} (24. Bh6 $142) 24... Rg6 {[%emt 0:04:30]} 25. Nh4 {[%emt 0:02:30]} (25. Re2 $142) 25... Rxf6 {[%emt 0:06:30]} 26. Nf5 {[%emt 0:00:30]} Re6 {[%emt 0:01:30]} 27. Rfd2 {[%emt 0:03:30]} Rg6 {[%emt 0:03:47] Strongly threatening ...Bc5.} 28. Bf4 {[%emt 0:00:30]} (28. Re2 {is a better defense.}) 28... f6 {[%emt 0:01:29] White must now prevent ...Bc5.} 29. Qf2 {[%emt 0:00:30][%cal Od2d7] [#] And now Rxd7! would win.} Nc5 {[%emt 0:00:41]} 30. Re1 {[%emt 0:00:30]} Rd8 {[%emt 0:04:20]} 31. Bf3 $2 {[%emt 0:01:30]} (31. Rde2) 31... Rxd2 {[%emt 0:00:39]} 32. Bxd2 {[%emt 0:00:00]} Nxf3 {[%emt 0:00:15]} 33. Qxf3 {[%emt 0:00:00]} Kf7 {[%emt 0:01:03] ( -> ...Nxe4)} 34. b4 {[%emt 0:00:30]} Nxe4 {[%emt 0:01:43][%cal Re4f2]} 35. Qb3+ {[%emt 0:00:30] Weighted Error Value: White=1.01/Black=0.30} 0-1